fUSD/lending_fUSD_20250519
["ID","MTS","AMOUNT","RATE_DAILY","PERIOD"]
[361588454,1747626643878,-400.0,0.00013698,2]
[361588455,1747626643887,-250.0,0.00013698,2]
[361588456,1747626643896,-1122.28,0.00013698,2]
[361588457,1747626643907,-445.99,0.00013698,2]
[361588458,1747626643916,-734.69,0.00013698,2]
[361588459,1747626643926,-1009.13,0.00013698,2]
[361588460,1747626643935,-606.24,0.00013698,2]
[361588461,1747626643944,-459.12,0.00013698,2]
[361588462,1747626643954,-500.0,0.00013698,2]
[361588463,1747626643964,-500.0,0.00013698,2]
[361588464,1747626643973,-400.0,0.00013698,2]
[361588465,1747626643982,-400.0,0.00013698,2]
[361588466,1747626643991,-400.0,0.00013698,2]
[361588467,1747626644000,-400.0,0.00013698,2]
[361588468,1747626644009,-1953.16,0.00013698,2]
[361588469,1747626644019,-400.0,0.00013698,2]
[361588470,1747626644028,-772.28,0.00013698,2]
[361588471,1747626644037,-1144.07,0.00013698,2]
[361588472,1747626644046,-630.64,0.00013698,2]
[361588473,1747626644055,-1127.85,0.00013698,2]
[361588474,1747626644064,-400.0,0.00013698,2]
[361588475,1747626644073,-400.0,0.00013698,2]
[361588476,1747626644082,-400.0,0.00013698,2]
[361588477,1747626644091,-609.46,0.00013698,2]
[361588478,1747626644100,-620.24,0.00013698,2]
[361588479,1747626644110,-538.03,0.00013698,2]
[361588480,1747626644119,-405.15820895,0.00013698,2]
[361588481,1747626644128,-400.0,0.00013698,2]
[361588482,1747626644137,-400.0,0.00013698,2]
[361588483,1747626644147,-585.99,0.00013698,2]
[361588484,1747626644157,-811.56,0.00013698,2]
[361588485,1747626644166,-1695.71,0.00013698,2]
[361588486,1747626644174,-400.0,0.00013698,2]
[361588487,1747626644183,-558.44,0.00013698,2]
[361588488,1747626644192,-400.0,0.00013698,2]
[361588489,1747626644201,-6404.25,0.00013698,2]
[361588490,1747626644210,-400.0,0.00013698,2]
[361588491,1747626644218,-400.0,0.00013698,2]
[361588492,1747626644227,-427.53,0.00013698,2]
[361588493,1747626644236,-400.0,0.00013698,2]
[361588494,1747626644245,-400.0,0.00013698,2]
[361588495,1747626644254,-400.0,0.00013698,2]
[361588496,1747626644263,-10371.93,0.00013698,2]
[361588497,1747626644272,-400.0,0.00013698,2]
[361588498,1747626644281,-400.0,0.00013698,2]
[361588499,1747626644290,-3529.42,0.00013698,2]
[361588500,1747626644300,-400.0,0.00013698,2]
[361588501,1747626644311,-400.0,0.00013698,2]
[361588502,1747626644319,-400.0,0.00013698,2]
[361588503,1747626644328,-400.0,0.00013698,2]
[361588504,1747626644336,-400.0,0.00013698,2]
[361588505,1747626644346,-1126.63,0.00013698,2]
[361588506,1747626644355,-400.0,0.00013698,2]
[361588507,1747626644364,-400.0,0.00013698,2]
[361588508,1747626644373,-400.0,0.00013698,2]
[361588509,1747626644382,-4282.55,0.00013698,2]
[361588510,1747626644392,-3824.01,0.00013698,2]
[361588511,1747626644401,-1346.66,0.00013698,2]
[361588512,1747626644410,-400.0,0.00013698,2]
[361588513,1747626644419,-406.70619995,0.00013698,2]
[361588514,1747626644428,-458.21,0.00013698,2]
[361588515,1747626644437,-597.13,0.00013698,2]
[361588516,1747626644446,-400.0,0.00013698,2]
[361588517,1747626644454,-408.97,0.00013698,2]
[361588518,1747626644463,-2344.28,0.00013698,2]
[361588519,1747626644472,-400.0,0.00013698,2]
[361588520,1747626644482,-1065.14,0.00013698,2]
[361588521,1747626644491,-7677.92,0.00013698,2]
[361588522,1747626644500,-400.0,0.00013698,2]
[361588523,1747626644509,-400.0,0.00013698,2]
[361588524,1747626644518,-400.0,0.00013698,2]
[361588525,1747626644527,-1378.96,0.00013698,2]
[361588526,1747626644536,-405.184051,0.00013698,2]
[361588527,1747626644545,-400.0,0.00013698,2]
[361588528,1747626644554,-7826.19,0.00013698,2]
[361588529,1747626644563,-400.0,0.00013698,2]
[361588530,1747626644572,-558.26,0.00013698,2]
[361588531,1747626644582,-2500.66,0.00013698,2]
[361588532,1747626644591,-1033.22,0.00013698,2]
[361588533,1747626644600,-400.0,0.00013698,2]
[361588534,1747626644609,-965.04,0.00013698,2]
[361588535,1747626644618,-1754.05,0.00013698,2]
[361588536,1747626644627,-551.93,0.00013698,2]
[361588537,1747626644636,-1011.45,0.00013698,2]
[361588538,1747626644644,-400.0,0.00013698,2]
[361588539,1747626644653,-849.09,0.00013698,2]
[361588540,1747626644662,-1130.43,0.00013698,2]
[361588541,1747626644671,-670.84,0.00013698,2]
[361588542,1747626644680,-400.0,0.00013698,2]
[361588543,1747626644689,-400.0,0.00013698,2]
[361588544,1747626644698,-400.0,0.00013698,2]
[361588545,1747626644707,-3609.37,0.00013698,2]
[361588546,1747626644717,-829.5,0.00013698,2]
[361588547,1747626644727,-400.0,0.00013698,2]
[361588548,1747626644738,-1719.97,0.00013698,2]
[361588549,1747626644748,-404.80928678,0.00013698,2]
[361588550,1747626644759,-1389.29,0.00013698,2]
[361588551,1747626644768,-2461.7,0.00013698,2]
[361588552,1747626644777,-400.0,0.00013698,2]
[361588553,1747626644786,-509.99445656,0.00013698,2]
[361588554,1747626644795,-400.0,0.00013698,2]
[361588555,1747626644804,-400.0,0.00013698,2]
[361588556,1747626644812,-400.0,0.00013698,2]
[361588557,1747626644822,-400.0,0.00013698,2]
[361588558,1747626644831,-606.46,0.00013698,2]
[361588559,1747626644840,-1188.89,0.00013698,2]
[361588560,1747626644849,-460.88,0.00013698,2]
[361588561,1747626644858,-1061.42,0.00013698,2]
[361588562,1747626644868,-400.0,0.00013698,2]
[361588563,1747626644877,-646.67,0.00013698,2]
[361588564,1747626644886,-1195.63,0.00013698,2]
[361588565,1747626644895,-538.97,0.00013698,2]
[361588566,1747626644905,-657.13,0.00013698,2]
[361588567,1747626644915,-1008.57,0.00013698,2]
[361588568,1747626644924,-459.96808403,0.00013698,2]
[361588569,1747626644933,-879.8,0.00013698,2]
[361588570,1747626644943,-698.81,0.00013698,2]
[361588571,1747626644952,-573.88,0.00013698,2]
[361588572,1747626644961,-355.05958738,0.00013698,2]
[361588573,1747626644970,-400.0,0.00013698,2]
[361588574,1747626644979,-1233.76,0.00013698,2]
[361588575,1747626644988,-1206.07,0.00013698,2]
[361588576,1747626644998,-400.0,0.00013698,2]
[361588577,1747626645007,-636.06,0.00013698,2]
[361588578,1747626645016,-400.0,0.00013698,2]
[361588579,1747626645025,-464.43,0.00013698,2]
[361588580,1747626645034,-380.30793683,0.00013698,2]
[361588581,1747626645043,-4447.87,0.00013698,2]
[361588582,1747626645052,-78820.16,0.00013698,2]
[361588583,1747626645061,-709.08,0.00013698,2]
[361588584,1747626645070,-400.0,0.00013698,2]
[361588585,1747626645079,-1382.21,0.00013698,2]
[361588586,1747626645088,-536.04,0.00013698,2]
[361588587,1747626645098,-542.48,0.00013698,2]
[361588588,1747626645107,-963.87,0.00013698,2]
[361588589,1747626645116,-400.0,0.00013698,2]
[361588590,1747626645125,-400.0,0.00013698,2]
[361588591,1747626645134,-405.35660533,0.00013698,2]
[361588592,1747626645143,-400.0,0.00013698,2]
[361588593,1747626645153,-512.91,0.00013698,2]
[361588594,1747626645162,-400.0,0.00013698,2]
[361588595,1747626645171,-400.0,0.00013698,2]
[361588596,1747626645180,-3297.1,0.00013698,2]
[361588597,1747626645189,-1138.08,0.00013698,2]
[361588599,1747626645198,-400.0,0.00013698,2]
[361588601,1747626645207,-2283.47,0.00013698,2]
[361588602,1747626645217,-863.9,0.00013698,2]
[361588603,1747626645226,-1164.95,0.00013698,2]
[361588604,1747626645235,-400.0,0.00013698,2]
[361588605,1747626645244,-1122.34,0.00013698,2]
[361588606,1747626645253,-410.78,0.00013698,2]
[361588607,1747626645262,-1585.38,0.00013698,2]
[361588608,1747626645273,-400.0,0.00013698,2]
[361588609,1747626645282,-822.81,0.00013698,2]
[361588610,1747626645291,-400.0,0.00013698,2]
[361588611,1747626645303,-400.0,0.00013698,2]
[361588612,1747626645312,-400.0,0.00013698,2]
[361588613,1747626645321,-950.55,0.00013698,2]
[361588614,1747626645330,-1988.15,0.00013698,2]
[361588615,1747626645339,-417.2762637,0.00013698,2]
[361588616,1747626645350,-400.0,0.00013698,2]
[361588617,1747626645359,-665.7,0.00013698,2]
[361588618,1747626645368,-540.4,0.00013698,2]
[361588619,1747626645377,-441.11,0.00013698,2]
[361588620,1747626645387,-404.65890343,0.00013698,2]
[361588621,1747626645396,-825.06,0.00013698,2]
[361588622,1747626645405,-830.42,0.00013698,2]
[361588623,1747626645415,-1237.08,0.00013698,2]
[361588624,1747626645423,-2346.97,0.00013698,2]
[361588625,1747626645432,-400.0,0.00013698,2]
[361588626,1747626645442,-400.0,0.00013698,2]
[361588627,1747626645450,-400.0,0.00013698,2]
[361588628,1747626645461,-162.60557873,0.00013698,2]
[361588629,1747626645472,-400.0,0.00013698,2]
[361588630,1747626645481,-400.0,0.00013698,2]
[361588631,1747626645491,-400.0,0.00013698,2]
[361588632,1747626645501,-400.0,0.00013698,2]
[361588633,1747626645511,-832.3,0.00013698,2]
[361588634,1747626645521,-400.0,0.00013698,2]
[361588635,1747626645531,-7509.87,0.00013698,2]
[361588636,1747626645540,-2556.2,0.00013698,2]
[361588637,1747626645549,-400.0,0.00013698,2]
[361588638,1747626645558,-400.0,0.00013698,2]
[361588639,1747626645567,-400.0,0.00013698,2]
[361588640,1747626645577,-400.0,0.00013698,2]
[361588641,1747626645589,-609.46,0.00013698,2]
[361588642,1747626645599,-403.86509828,0.00013698,2]
[361588643,1747626645608,-1590.9,0.00013698,2]
[361588644,1747626645619,-400.0,0.00013698,2]
[361588645,1747626645627,-400.0,0.00013698,2]
[361588646,1747626645637,-400.0,0.00013698,2]
[361588647,1747626645647,-1904.18,0.00013698,2]
[361588648,1747626645658,-1228.85,0.00013698,2]
[361588649,1747626645666,-400.0,0.00013698,2]
[361588650,1747626645675,-400.0,0.00013698,2]
[361588651,1747626645684,-409.36,0.00013698,2]
[361588652,1747626645693,-728.55,0.00013698,2]
[361588653,1747626645702,-400.0,0.00013698,2]
[361588654,1747626645711,-155.101076,0.00013698,2]
[361588655,1747626645719,-400.0,0.00013698,2]
[361588656,1747626645728,-10968.51,0.00013698,2]
[361588657,1747626645737,-904.55,0.00013698,2]
[361588658,1747626645746,-2137.38,0.00013698,2]
[361588659,1747626645755,-4280.11,0.00013698,2]
[361588660,1747626645764,-1200.85,0.00013698,2]
[361588661,1747626645772,-400.0,0.00013698,2]
[361588662,1747626645781,-669.43,0.00013698,2]
[361588663,1747626645790,-400.0,0.00013698,2]
[361588664,1747626645800,-400.0,0.00013698,2]
[361588665,1747626645808,-400.0,0.00013698,2]
[361588666,1747626645817,-400.0,0.00013698,2]
[361588667,1747626645826,-400.0,0.00013698,2]
[361588668,1747626645835,-7180.6,0.00013698,2]
[361588669,1747626645844,-2516.64,0.00013698,2]
[361588670,1747626645853,-400.0,0.00013698,2]
[361588671,1747626645863,-400.0,0.00013698,2]
[361588672,1747626645872,-400.0,0.00013698,2]
[361588673,1747626645881,-400.0,0.00013698,2]
[361588674,1747626645890,-400.0,0.00013698,2]
[361588675,1747626645900,-437.95,0.00013698,2]
[361588676,1747626645910,-2440.97,0.00013698,2]
[361588677,1747626645919,-2037.96,0.00013698,2]
[361588678,1747626645929,-665.89,0.00013698,2]
[361588679,1747626645938,-5307.95,0.00013698,2]
[361588680,1747626645948,-622.11,0.00013698,2]
[361588682,1747626645957,-400.0,0.00013698,2]
[361588683,1747626645966,-400.0,0.00013698,2]
[361588684,1747626645975,-1419.61,0.00013698,2]
[361588685,1747626645984,-1837.58,0.00013698,2]
[361588686,1747626645992,-3852.77,0.00013698,2]
[361588687,1747626646002,-400.0,0.00013698,2]
[361588689,1747626646011,-400.0,0.00013698,2]
[361588690,1747626646020,-156.724676,0.00013698,2]
[361588691,1747626646029,-458.84,0.00013698,2]
[361588692,1747626646038,-400.0,0.00013698,2]
[361588693,1747626646047,-1863.87,0.00013698,2]
[361588694,1747626646056,-400.604644,0.00013698,2]
[361588695,1747626646065,-400.0,0.00013698,2]
[361588696,1747626646073,-400.0,0.00013698,2]
[361588697,1747626646083,-400.0,0.00013698,2]
[361588698,1747626646091,-400.0,0.00013698,2]
[361588699,1747626646100,-759.57,0.00013698,2]
[361588700,1747626646109,-1000.0,0.00013698,2]
[361588701,1747626646119,-8939.67,0.00013698,2]
[361588702,1747626646127,-400.0,0.00013698,2]
[361588703,1747626646136,-400.0,0.00013698,2]
[361588704,1747626646145,-709.78,0.00013698,2]
[361588705,1747626646155,-1228.88,0.00013698,2]
[361588706,1747626646163,-400.0,0.00013698,2]
[361588707,1747626646172,-500.0,0.00013698,2]
[361588708,1747626646180,-1548.49,0.00013698,2]
[361588709,1747626646189,-374.64583591,0.00013698,2]
[361588710,1747626646199,-199.54245846,0.00013698,2]
[361588711,1747626646207,-400.0,0.00013698,2]
[361588712,1747626646216,-400.0,0.00013698,2]
[361588713,1747626646225,-5544.94,0.00013698,2]
[361588714,1747626646238,-2602.31,0.00013698,2]
[361588715,1747626646247,-400.0,0.00013698,2]
[361588716,1747626646257,-400.0,0.00013698,2]
[361588717,1747626646267,-1037.42,0.00013698,2]
[361588718,1747626646277,-403.64054502,0.00013698,2]
[361588719,1747626646288,-400.0,0.00013698,2]
[361588720,1747626646299,-400.0,0.00013698,2]
[361588721,1747626646311,-400.0,0.00013698,2]
[361588722,1747626646321,-451.55,0.00013698,2]
[361588723,1747626646331,-400.0,0.00013698,2]
[361588724,1747626646341,-400.0,0.00013698,2]
[361588725,1747626646351,-1890.06,0.00013698,2]
[361588726,1747626646360,-1374.84,0.00013698,2]
[361588727,1747626646370,-402.38,0.00013698,2]
[361588728,1747626646380,-488.39,0.00013698,2]
[361588729,1747626646393,-400.0,0.00013698,2]
[361588730,1747626646403,-400.0,0.00013698,2]
[361588731,1747626646412,-407.56858252,0.00013698,2]
[361588732,1747626646421,-15888.01,0.00013698,2]
[361588733,1747626646430,-2279.2,0.00013698,2]
[361588734,1747626646439,-400.0,0.00013698,2]
[361588735,1747626646448,-703.1,0.00013698,2]
[361588736,1747626646459,-3398.41,0.00013698,2]
[361588737,1747626646469,-400.0,0.00013698,2]
[361588738,1747626646479,-417.11,0.00013698,2]
[361588739,1747626646488,-400.0,0.00013698,2]
[361588740,1747626646497,-400.0,0.00013698,2]
[361588741,1747626646506,-166.361386,0.00013698,2]
[361588742,1747626646516,-2661.65,0.00013698,2]
[361588743,1747626646525,-400.0,0.00013698,2]
[361588744,1747626646534,-400.0,0.00013698,2]
[361588745,1747626646543,-400.0,0.00013698,2]
[361588746,1747626646552,-254.46791137,0.00013698,2]
[361588747,1747626646561,-353.79630221,0.00013698,2]
[361588748,1747626646571,-500.0,0.00013698,2]
[361588749,1747626646580,-500.0,0.00013698,2]
[361588750,1747626646589,-447.19,0.00013698,2]
[361588751,1747626646599,-678.06,0.00013698,2]
[361588752,1747626646608,-410.33,0.00013698,2]
[361588753,1747626646617,-400.0,0.00013698,2]
[361588754,1747626646626,-2274.52344468,0.00013698,2]
[361588755,1747626646635,-400.0,0.00013698,2]
[361588756,1747626646644,-400.0,0.00013698,2]
[361588757,1747626646653,-400.0,0.00013698,2]
[361588758,1747626646663,-153.148462,0.00013698,2]
[361588759,1747626646672,-2745.38,0.00013698,2]
[361588760,1747626646681,-400.0,0.00013698,2]
[361588761,1747626646690,-784.52,0.00013698,2]
[361588762,1747626646699,-400.0,0.00013698,2]
[361588763,1747626646708,-713.46,0.00013698,2]
[361588764,1747626646717,-400.0,0.00013698,2]
[361588765,1747626646727,-1212.68,0.00013698,2]
[361588766,1747626646735,-806.59,0.00013698,2]
[361588767,1747626646744,-2088.32,0.00013698,2]
[361588768,1747626646753,-1252.92,0.00013698,2]
[361588769,1747626646762,-400.0,0.00013698,2]
[361588770,1747626646771,-1030.38,0.00013698,2]
[361588771,1747626646780,-400.0,0.00013698,2]
[361588772,1747626646789,-1109.46,0.00013698,2]
[361588773,1747626646798,-7421.54,0.00013698,2]
[361588774,1747626646807,-1262.16,0.00013698,2]
[361588775,1747626646819,-400.0,0.00013698,2]
[361588776,1747626646831,-400.0,0.00013698,2]
[361588777,1747626646841,-400.0,0.00013698,2]
[361588778,1747626646850,-604.28,0.00013698,2]
[361588779,1747626646859,-438.59519348,0.00013698,2]
[361588780,1747626646869,-400.0,0.00013698,2]
[361588781,1747626646878,-2431.11,0.00013698,2]
[361588782,1747626646888,-763.16,0.00013698,2]
[361588783,1747626646897,-1786.02,0.00013698,2]
[361588784,1747626646906,-400.0,0.00013698,2]
[361588785,1747626646916,-663.66,0.00013698,2]
[361588786,1747626646926,-400.0,0.00013698,2]
[361588787,1747626646935,-2398.0,0.00013698,2]
[361588788,1747626646945,-401.18692361,0.00013698,2]
[361588789,1747626646954,-1048.39,0.00013698,2]
[361588790,1747626646963,-400.0,0.00013698,2]
[361588791,1747626646973,-400.0,0.00013698,2]
[361588792,1747626646982,-1390.26,0.00013698,2]
[361588793,1747626646991,-805.52,0.00013698,2]
[361588794,1747626647000,-12526.43,0.00013698,2]
[361588795,1747626647011,-190.01134195,0.00013698,2]
[361588796,1747626647020,-400.0,0.00013698,2]
[361588797,1747626647029,-400.0,0.00013698,2]
[361588798,1747626647039,-751.69,0.00013698,2]
[361588799,1747626647050,-500.0,0.00013698,2]
[361588800,1747626647059,-500.0,0.00013698,2]
[361588801,1747626647069,-500.0,0.00013698,2]
[361588802,1747626647078,-944.99,0.00013698,2]
[361588803,1747626647089,-1546.27,0.00013698,2]
[361588804,1747626647099,-400.0,0.00013698,2]
[361588805,1747626647108,-400.0,0.00013698,2]
[361588806,1747626647118,-543.13,0.00013698,2]
[361588807,1747626647127,-471.18,0.00013698,2]
[361588808,1747626647136,-400.0,0.00013698,2]
[361588809,1747626647145,-554.3,0.00013698,2]
[361588810,1747626647154,-423.93,0.00013698,2]
[361588811,1747626647165,-400.21746385,0.00013698,2]
[361588812,1747626647174,-400.0,0.00013698,2]
[361588813,1747626647183,-400.0,0.00013698,2]
[361588814,1747626647192,-592.67,0.00013698,2]
[361588815,1747626647335,-400.0,0.00013698,2]
[361588816,1747626647346,-400.0,0.00013698,2]
[361588817,1747626647356,-2471.04,0.00013698,2]
[361588818,1747626647365,-400.0,0.00013698,2]
[361588819,1747626647374,-400.0,0.00013698,2]
[361588820,1747626647384,-970.95,0.00013698,2]
[361588821,1747626647393,-400.0,0.00013698,2]
[361588822,1747626647402,-400.0,0.00013698,2]
[361588823,1747626647413,-400.0,0.00013698,2]
[361588824,1747626647423,-400.0,0.00013698,2]
[361588825,1747626647431,-400.0,0.00013698,2]
[361588826,1747626647440,-400.0,0.00013698,2]
[361588827,1747626647449,-400.0,0.00013698,2]
[361588828,1747626647459,-400.0,0.00013698,2]
[361588829,1747626647468,-403.00669421,0.00013698,2]
[361588830,1747626647477,-400.0,0.00013698,2]
[361588831,1747626647487,-803.53,0.00013698,2]
[361588832,1747626647495,-400.0,0.00013698,2]
[361588833,1747626647505,-400.0,0.00013698,2]
[361588834,1747626647514,-959.65,0.00013698,2]
[361588835,1747626647523,-401.44021596,0.00013698,2]
[361588836,1747626647532,-505.52,0.00013698,2]
[361588837,1747626647541,-200.0,0.00013699,2]
[361588838,1747626647550,-1500.0,0.00013699,2]
[361588839,1747626647559,-596.9,0.00013699,2]
[361588840,1747626647568,-200000.0,0.00013699,2]
[361588841,1747626647577,-1385.20362503,0.00013699,2]
[361588842,1747626647586,-347.70659181,0.00013699,2]
[361588843,1747626647595,-252.22796437,0.00013699,2]
[361588844,1747626647604,-500.0,0.00013699,2]
[361588845,1747626647613,-500.0,0.00013699,2]
[361588846,1747626647623,-203.35728366,0.00013699,2]
[361588847,1747626647632,-500.0,0.00013699,2]
[361588848,1747626647641,-500.0,0.00013699,2]
[361588849,1747626647650,-500.0,0.00013699,2]
[361588850,1747626647660,-500.0,0.00013699,2]
[361588851,1747626647670,-416.80807469,0.00013699,2]
[361588852,1747626647680,-500.0,0.00013699,2]
[361588853,1747626647689,-500.0,0.00013699,2]
[361588854,1747626647698,-500.0,0.00013699,2]
[361588855,1747626647708,-500.0,0.00013699,2]
[361588856,1747626647717,-500.0,0.00013699,2]
[361588857,1747626647726,-500.0,0.00013699,2]
[361588858,1747626647735,-500.0,0.00013699,2]
[361588859,1747626647744,-500.0,0.00013699,2]
[361588860,1747626647753,-500.0,0.00013699,2]
[361588861,1747626647763,-500.0,0.00013699,2]
[361588862,1747626647771,-500.0,0.00013699,2]
[361588863,1747626647780,-500.0,0.00013699,2]
[361588864,1747626647790,-500.0,0.00013699,2]
[361588865,1747626647799,-500.0,0.00013699,2]
[361588866,1747626647808,-500.0,0.00013699,2]
[361588867,1747626647817,-500.0,0.00013699,2]
[361588868,1747626647827,-500.0,0.00013699,2]
[361588869,1747626647836,-500.0,0.00013699,2]
[361588870,1747626647845,-500.0,0.00013699,2]
[361588871,1747626647854,-500.0,0.00013699,2]
[361588872,1747626647864,-500.0,0.00013699,2]
[361588873,1747626647873,-500.0,0.00013699,2]
[361588874,1747626647882,-500.0,0.00013699,2]
[361588875,1747626647892,-500.0,0.00013699,2]
[361588876,1747626647902,-500.0,0.00013699,2]
[361588877,1747626647912,-500.0,0.00013699,2]
[361588878,1747626647921,-506.90347973,0.00013699,2]
[361588879,1747626647931,-500.0,0.00013699,2]
[361588880,1747626647941,-500.0,0.00013699,2]
[361588881,1747626647950,-500.0,0.00013699,2]
[361588882,1747626647960,-500.0,0.00013699,2]
[361588883,1747626647969,-1193.0,0.000137,2]
[361588884,1747626647979,-196.51,0.000137,2]
[361588885,1747626647988,-169.26542732,0.00013707,2]
[361588886,1747626647997,-1680.0,0.00013711,2]
[361588887,1747626648007,-452.61173088,0.0001373,2]
[361588888,1747626648016,-1385.20362503,0.00013732,2]
[361588889,1747626648025,-167.13819546,0.00013749,2]
[361588890,1747626648034,-1385.20362503,0.00013766,2]
[361588891,1747626648044,-150.0,0.00013785,2]
[361588892,1747626648053,-182.67961877,0.00013798,2]
[361588893,1747626648063,-1385.20362503,0.00013799,2]
[361588894,1747626648072,-338.5,0.00013807,2]
[361588895,1747626648082,-812.31,0.00013807,2]
[361588896,1747626648091,-812.31,0.00013807,2]
[361588897,1747626648100,-812.31,0.00013807,2]
[361588898,1747626648110,-500.0,0.00013807,2]
[361588899,1747626648120,-500.0,0.00013807,2]
[361588900,1747626648130,-500.0,0.00013807,2]
[361588901,1747626648140,-500.0,0.00013807,2]
[361588902,1747626648149,-500.0,0.00013807,2]
[361588903,1747626648159,-400.0,0.00013808,2]
[361588904,1747626648169,-400.0,0.00013808,2]
[361588905,1747626648178,-442.78,0.00013808,2]
[361588906,1747626648187,-400.0,0.00013808,2]
[361588907,1747626648196,-466.16,0.00013808,2]
[361588908,1747626648206,-405.95380563,0.00013808,2]
[361588909,1747626648215,-400.0,0.00013808,2]
[361588910,1747626648225,-400.0,0.00013808,2]
[361588911,1747626648234,-400.0,0.00013808,2]
[361588912,1747626648244,-512.21,0.00013808,2]
[361588913,1747626648253,-411.80963665,0.00013808,2]
[361588914,1747626648263,-400.0,0.00013808,2]
[361588915,1747626648272,-497.61,0.00013808,2]
[361588916,1747626648282,-485.89,0.00013808,2]
[361588917,1747626648291,-496.4,0.00013808,2]
[361588918,1747626648301,-400.0,0.00013808,2]
[361588919,1747626648313,-400.0,0.00013808,2]
[361588920,1747626648323,-400.0,0.00013808,2]
[361588921,1747626648333,-400.0,0.00013808,2]
[361588922,1747626648343,-400.0,0.00013808,2]
[361588923,1747626648353,-641.15,0.00013808,2]
[361588924,1747626648363,-400.0,0.00013808,2]
[361588925,1747626648372,-400.0,0.00013808,2]
[361588926,1747626648382,-400.0,0.00013808,2]
[361588927,1747626648392,-622.25,0.00013808,2]
[361588928,1747626648402,-400.0,0.00013808,2]
[361588929,1747626648413,-495.83,0.00013808,2]
[361588930,1747626648422,-400.0,0.00013808,2]
[361588931,1747626648432,-628.98,0.00013808,2]
[361588932,1747626648441,-470.35,0.00013808,2]
[361588933,1747626648451,-400.0,0.00013808,2]
[361588934,1747626648461,-400.0,0.00013808,2]
[361588935,1747626648471,-400.0,0.00013808,2]
[361588936,1747626648480,-518.23,0.00013808,2]
[361588937,1747626648490,-400.0,0.00013808,2]
[361588938,1747626648500,-400.0,0.00013808,2]
[361588939,1747626648509,-457.02,0.00013808,2]
[361588940,1747626648519,-438.47,0.00013808,2]
[361588941,1747626648528,-400.0,0.00013808,2]
[361588942,1747626648538,-400.0,0.00013808,2]
[361588943,1747626648547,-400.0,0.00013808,2]
[361588944,1747626648556,-556.85,0.00013808,2]
[361588945,1747626648566,-400.0,0.00013808,2]
[361588946,1747626648575,-400.0,0.00013808,2]
[361588947,1747626648585,-461.31483318,0.00013808,2]
[361588948,1747626648594,-400.0,0.00013808,2]
[361588949,1747626648604,-443.62,0.00013808,2]
[361588950,1747626648613,-413.42,0.00013808,2]
[361588951,1747626648623,-400.0,0.00013808,2]
[361588952,1747626648632,-400.0,0.00013808,2]
[361588953,1747626648642,-400.0,0.00013808,2]
[361588954,1747626648651,-768.2,0.00013808,2]
[361588955,1747626648662,-407.99,0.00013808,2]
[361588956,1747626648672,-400.0,0.00013808,2]
[361588957,1747626648681,-187.81240899,0.00013808,2]